Cogmind - Beta 11 X10 @@@ ROGUE MODE // 2022.02.26 @ 15:08:46 Player: maxwell Result: Destroyed by G-47 Trooper with Particle Gun Performance ------------- Evolutions (0) 0 Regions Visited (4) 800 Robots Destroyed (30) 150 Value Destroyed (439) 439 Prototype IDs (2) 40 Alien Tech Used (0) 0 Bonus (-75) -75 TOTAL SCORE: 1354 Bonus ------- High Alert Combat Kills 18 Follower Combat Kills 127 Friendly Fire -220 Cogmind --------- Core Integrity 0/250 Matter 190/300 Energy 75/250 System Corruption 4% Temperature Cool (9) Movement Core (1500) Ox29 Location -9/Mines Parts ------- > --- POWER (1) -------- Ion Engine > --- PROPULSION (2) --- (None) > --- UTILITY (2) ------ Huge Storage Unit Targeting Computer > --- WEAPON (2) ------- Heavy Assault Rifle > --- INVENTORY (25) --- Light Ion Engine Light Treads Light Treads Compact Wheel Disposable Heat Sink Huge Storage Unit Huge Storage Unit High-capacity Matter Pod (200) Targeting Computer Targeting Computer Medium Laser Small Laser Grenade Launcher Datajack Peak State ------------ > --- POWER ------------ Light Ion Engine > --- PROPULSION ------- Wheel Compact Wheel > --- UTILITY ---------- Huge Storage Unit Structural Scanner > --- WEAPON ----------- EM Pulse Gun Medium Laser > --- INVENTORY -------- Ion Engine Light Ion Engine Light Treads Light Treads Huge Storage Unit Huge Storage Unit High-capacity Matter Pod Targeting Computer Targeting Computer Datajack [Rating: 8] Favorites ----------- Power Light Ion Engine Engine Light Ion Engine Propulsion Wheel Wheel Wheel Utility Huge Storage Unit Device Structural Scanner Storage Huge Storage Unit Processor Targeting Computer Weapon Medium Laser Energy Gun Medium Laser Ballistic Gun Assault Rifle Launcher Grenade Launcher Build | -11 -10 -10 -10 -9 ------- Run | Scr Mat Min Exi Min Slots Evolved . | . . . . . Power . | . . . . . Propulsion . | . . . . . Utility . | . . . . . Weapon . | . . . . . Parts Attached 18 | 6 5 2 . 5 Power 3 | 1 1 . . 1 Engine 3 | 1 1 . . 1 Core . | . . . . . Reactor . | . . . . . Propulsion 4 | 2 1 1 . . Treads . | . . . . . Leg . | . . . . . Wheel 4 | 2 1 1 . . Hover . | . . . . . Flight . | . . . . . Utility 4 | 1 2 1 . . Device 1 | . 1 . . . Storage 2 | 1 1 . . . Processor 1 | . . 1 . . Hackware . | . . . . . Protection . | . . . . . Artifact . | . . . . . Weapon 7 | 2 1 . . 4 Energy Gun 4 | 1 1 . . 2 Energy Cannon . | . . . . . Ballistic Gun 2 | 1 . . . 1 Ballistic Cannon . | . . . . . Launcher 1 | . . . . 1 Special Weapon . | . . . . . Impact Weapon . | . . . . . Slashing Weapon . | . . . . . Piercing Weapon . | . . . . . Special Melee Weapon . | . . . . . Unidentified Prototypes . | . . . . . Parts Lost 10 | . 3 2 . 5 Power 2 | . 1 . . 1 Propulsion 4 | . 1 1 . 2 Utility 1 | . . 1 . . Weapon 3 | . 1 . . 2 Highest Loss Streak 4 | . 2 1 . 4 To Critical Strikes . | . . . . . Average Slot Usage (%) 98 | . 97 99 100 97 Engine 13 | . 13 14 14 14 Wheel 27 | . 26 27 28 25 Device 8 | . 13 7 . . Storage 14 | . 14 14 14 14 Processor 5 | . . 6 14 14 Energy Gun 25 | . 21 28 28 25 Ballistic Gun 2 | . 6 . . . Naked Turns . | . . . . . Heaviest Build 88 | 12 88 88 87 88 Greatest Support 26 | 20 26 26 26 26 Greatest Overweight (x) 5 | 3 3 5 3 5 Average Overweight (x) 2 | . . 3 3 3 Largest Inventory Capacity 25 | 8 25 25 25 25 Average Capacity 19 | 7 11 25 25 25 Most Carried 16 | 4 10 14 14 16 Average Carried 9 | 2 6 10 14 15 Final Capacity 25 | 8 25 25 25 25 Final Carried 14 | 4 10 14 14 14 Class Distribution -------------------- 100% | Mutant Dominant Class ---------------- Mutant | -10/Materials Mutant | -10/Mines Mutant | -10/Exiles Mutant | -9/Mines Resources | -11 -10 -10 -10 -9 ----------- Run | Scr Mat Min Exi Min Matter Collected 660 | 113 348 193 . 6 Remotely . | . . . . . Salvage Created 808 | . 591 82 . 135 Parts 47 | . 30 7 . 10 Haulers Intercepted 1 | . 1 . . . Recyclers Shooed 1 | . . . . 1 Parts Field Recycled . | . . . . . Retrieved Matter . | . . . . . Parts Self-Destructed . | . . . . . Prevented . | . . . . . Kills | -11 -10 -10 -10 -9 ------- Run | Scr Mat Min Exi Min Combat Hostiles Destroyed 19 | . 14 . . 5 Guns 14 | . 13 . . 1 AOE 5 | . 1 . . 4 Classes Destroyed 10 | . 7 . . 3 Worker 1 | . 1 . . . Builder 2 | . 1 1 . . Tunneler 1 | . . . . 1 Hauler 1 | . 1 . . . Recycler 3 | . 1 1 . 1 Watcher 3 | . 3 . . . Swarmer 12 | . 9 . . 3 Grunt 6 | . 5 . . 1 Demolisher 1 | . . . . 1 Assembled 1 | . . . . 1 Best Kill Streak 6 | . 6 1 . 6 Combat Bots Only 6 | . 6 . . 4 Max Kills in Single Turn 2 | . 2 1 . 2 Gunslinging 1 | . 1 . . . Exploded 1 | . 1 . . 1 Melee . | . . . . . Uniques/NPCs Destroyed . | . . . . . Combat | -11 -10 -10 -10 -9 -------- Run | Scr Mat Min Exi Min Damage Taken 836 | . 387 160 . 289 Core 252 | . 80 67 . 105 Absorbed by Shields . | . . . . . Core Remaining (%) 100 | 100 . . . . Volleys Fired 72 | . 53 10 . 9 Largest 2 | . 2 2 . 2 Hottest 90 | . 90 90 . 85 Shots Fired 138 | . 106 22 . 10 Gun 131 | . 106 22 . 3 Cannon . | . . . . . Launcher 7 | . . . . 7 Special . | . . . . . Kinetic 39 | . 39 . . . Thermal 64 | . 53 11 . . Explosive 7 | . . . . 7 Electromagnetic 28 | . 14 11 . 3 Robot Hit Streak 11 | . 11 6 . 7 Robot Miss Streak 5 | . 5 2 . 2 Penetration Max . | . . . . . Secondary Targets 3 | . 3 . . . Max Gunslinging Chain 1 | . 1 . . . Shots Hit Robots 82 | . 63 16 . 3 Core Hits 40 | . 26 4 . 10 Critical Kills . | . . . . . Critical Parts Destroyed 1 | . 1 . . . Critical Strikes 4 | . 4 . . . Burn 2 | . 2 . . . Destroy 1 | . 1 . . . Corrupt 1 | . 1 . . . Melee Attacks . | . . . . . Impact . | . . . . . Slashing . | . . . . . Piercing . | . . . . . Sneak Attacks . | . . . . . Combat Hostiles . | . . . . . Follow-up Attacks . | . . . . . Damage Inflicted 1480 | . 866 194 . 420 Guns 1036 | . 817 194 . 25 Cannons . | . . . . . Explosions 444 | . 49 . . 395 Melee . | . . . . . Ramming . | . . . . . Kinetic 320 | . 320 . . . Thermal 489 | . 404 85 . . Explosive 395 | . . . . 395 Electromagnetic 276 | . 142 109 . 25 Impact . | . . . . . Slashing . | . . . . . Piercing . | . . . . . Highest Corruption 4 | . 4 4 4 4 Average Corruption 3 | . 3 4 4 4 Corruption Purged . | . . . . . Corruption Blocked . | . . . . . Effects 29 | . 2 17 3 7 Message Errors 5 | . . 4 . 1 Matter Fused 7 | . . 4 1 2 Heat Flow Errors 5 | . . 3 1 1 Energy Discharges 6 | . 1 3 . 2 Data Loss (minor) 3 | . 1 1 . 1 Data Loss (major) 1 | . . . 1 . Misfires 2 | . . 2 . . Overload Shots . | . . . . . Overflow Damage 8 | . . . . 8 Projectiles . | . . . . . Explosions 8 | . . . . 8 Melee . | . . . . . Knockbacks . | . . . . . Impact . | . . . . . Kinetic . | . . . . . Secondary . | . . . . . Self-Inflicted Damage 44 | . . . . 44 Shots 2 | . . . . 2 Rammed . | . . . . . Targets Rammed . | . . . . . Kicked . | . . . . . Crushed . | . . . . . Highest Temperature 274 | . 207 274 180 157 Average Temperature 74 | . 61 106 100 61 Received Heat Transfer 245 | . 114 93 . 38 Siege Activations . | . . . . . Robots Corrupted 1 | . 1 . . . Combat Hostiles . | . . . . . Parts Fried 2 | . 2 . . . Impact Corruptions . | . . . . . Robots Melted . | . . . . . Combat Hostiles . | . . . . . Parts Melted 3 | . 3 . . . Heat Transferred 1543 | . 1284 259 . . Parts Sabotaged . | . . . . . Parts Stolen . | . . . . . Parts Stripped . | . . . . . Power Chain Reactions 2 | . 2 . . . Missiles Intercepted . | . . . . . Alert | -11 -10 -10 -10 -9 ------- Run | Scr Mat Min Exi Min Peak Influence 507 | . 507 193 . 100 Initial 140 | . . 140 . . Average 160 | . 291 102 . 9 Maximum Alert Level 2 | . 2 . . . Low Security (%) 68 | 100 21 100 . 100 Level 1 26 | . 66 . . . Level 2 4 | . 11 . . . Level 3 . | . . . . . Level 4 . | . . . . . Level 5 . | . . . . . High Security . | . . . . . Max Security . | . . . . . Squads Dispatched 3 | . 3 . . . Investigation 2 | . 2 . . . Extermination . | . . . . . Reinforcement 1 | . 1 . . . Assault . | . . . . . Garrison . | . . . . . Intercept . | . . . . . Construction Impeded . | . . . . . Haulers Reinforced . | . . . . . Active Scanning Responses . | . . . . . Cargo Convoy Interrupts . | . . . . . Stealth | -11 -10 -10 -10 -9 --------- Run | Scr Mat Min Exi Min Distress Signals . | . . . . . Communications Jammed . | . . . . . Distress Signals . | . . . . . Times Spotted 36 | . 21 4 . 11 Peak Tracking Total 10 | . 3 2 . 10 Tactical Retreats 1 | . 1 . . . Traps | -11 -10 -10 -10 -9 ------- Run | Scr Mat Min Exi Min Traps Triggered 2 | . 2 . . . Indirectly . | . . . . . Trap Hack Attempts . | . . . . . Triggered . | . . . . . Disarmed . | . . . . . Reprogrammed . | . . . . . Reused . | . . . . . Traps Extracted . | . . . . . Installed . | . . . . . Triggered . | . . . . . Machines | -11 -10 -10 -10 -9 ---------- Run | Scr Mat Min Exi Min Machines Disabled 2 | . 2 . . . Max in Single Turn 1 | . 1 . . . Machines Sabotaged . | . . . . . Garrisons Compromised . | . . . . . Overloaded Fab Kills . | . . . . . Hacking | -11 -10 -10 -10 -9 --------- Run | Scr Mat Min Exi Min Machines Accessed 9 | . 8 . 1 . Terminals 6 | . 6 . . . Fabricators . | . . . . . Repair Stations . | . . . . . Recycling Units 2 | . 2 . . . Scanalyzers . | . . . . . Garrison Access . | . . . . . Total Hacks 28 | . 27 . 1 . Successful 15 | . 14 . 1 . Failed 13 | . 13 . . . Catastrophic . | . . . . . Database Lockouts . | . . . . . Manual 21 | . 21 . . . Terminals 22 | . 22 . . . Fabricators . | . . . . . Repair Stations . | . . . . . Recycling Units 5 | . 5 . . . Scanalyzers . | . . . . . Garrison Access . | . . . . . Terminal Hacks 7 | . 6 . 1 . Record 1 | . . . 1 . Robot Analysis 3 | . 3 . . . Prototype ID Bank 1 | . 1 . . . Terminal Index 1 | . 1 . . . Locate Traps 1 | . 1 . . . Fabricator Hacks . | . . . . . Repair Station Hacks . | . . . . . Recycling Unit Hacks 2 | . 2 . . . Retrieve Components 2 | . 2 . . . Scanalyzer . | . . . . . Garrison Access Hacks . | . . . . . Unauthorized Hacks 6 | . 6 . . . Terminals 4 | . 4 . . . Track 1 | . 1 . . . Botnet 1 | . 1 . . . Disrupt 1 | . 1 . . . Operators 1 | . 1 . . . Fabricators . | . . . . . Repair Stations . | . . . . . Recycling Units 2 | . 2 . . . Tunnel 2 | . 2 . . . Scanalyzers . | . . . . . Garrison Access . | . . . . . Data Cores Recovered . | . . . . . Used . | . . . . . Hacking Detections 7 | . 7 . . . Full Trace Events 1 | . 1 . . . Feedback Events . | . . . . . Feedback Blocked . | . . . . . Robot Schematics Acquired . | . . . . . Robots Built . | . . . . . Authchips . | . . . . . Time . | . . . . . Total Robot Build Rating . | . . . . . Part Schematics Acquired . | . . . . . Parts Built . | . . . . . Authchips . | . . . . . Time . | . . . . . Total Part Build Rating . | . . . . . Parts Repaired . | . . . . . Time . | . . . . . Parts Recycled . | . . . . . Recycled Matter . | . . . . . Retrieved Matter . | . . . . . Retrieved Components 6 | . 6 . . . Parts Scanalyzed . | . . . . . Part Schematics Acquired . | . . . . . Parts Damaged . | . . . . . Bothacking | -11 -10 -10 -10 -9 ------------ Run | Scr Mat Min Exi Min Used RIF Installer . | . . . . . Robots Hacked . | . . . . . Non-combat . | . . . . . Combat . | . . . . . Robot Hacks Applied . | . . . . . Relay Couplers Released . | . . . . . Fabnet Peak Effective % . | . . . . . Robots Rewired . | . . . . . Allies Hacked . | . . . . . Hacks Repelled . | . . . . . Allies | -11 -10 -10 -10 -9 -------- Run | Scr Mat Min Exi Min Total Allies 3 | . . 3 . . Largest Group 3 | . . 3 3 3 Highest-Rated Group 40 | . . 40 40 40 Highest-Rated Ally 16 | . . 16 16 16 Total Orders . | . . . . . Ally Attacks 45 | . . 27 . 18 Total Damage 424 | . . 300 . 124 Kills 7 | . . 4 . 3 Allies Corrupted . | . . . . . Allies Melted . | . . . . . Intel | -11 -10 -10 -10 -9 ------- Run | Scr Mat Min Exi Min Robot Analysis Total 3 | . 3 . . . Derelict Logs Recovered 2 | . . 1 . 1 Drone Launches . | . . . . . Drone Recoveries . | . . . . . Exploration | -11 -10 -10 -10 -9 ------------- Run | Scr Mat Min Exi Min Turns Passed 2094 | 65 754 823 188 264 Spaces Moved 1525 | 49 597 573 140 166 Core 14 | 14 . . . . Treads . | . . . . . Legs . | . . . . . Wheels 1511 | 35 597 573 140 166 Hover . | . . . . . Flight . | . . . . . Fastest Speed 50 | 50 80 135 135 135 Average Speed 118 | 107 93 135 135 136 Slowest Speed 200 | 200 135 175 135 175 Overloaded Moves . | . . . . . Propulsion Burnouts . | . . . . . Robots Hopped . | . . . . . Cave-ins Triggered . | . . . . . Exploration Rate (%) 59 | 4 96 97 55 45 Regions Visited 4 Branch Regions 3 Pre-discovered Areas 4 | . 2 1 1 . Known Exits Taken . | . . . . . Unknown Exits Taken 4 | 1 1 1 1 . Scrap Searched 2 | . . 1 . 1 Spaces Dug . | . . . . . Terrain Destroyed 51 | . 5 . . 46 Melee . | . . . . . Projectile . | . . . . . AOE 51 | . 5 . . 46 Terrain Rammed . | . . . . . Walls Destroyed . | . . . . . Machines Disabled . | . . . . . Actions | -11 -10 -10 -10 -9 --------- Run | Scr Mat Min Exi Min Total 1676 | 58 687 601 139 191 Wait 43 | . 22 12 . 9 Move 1521 | 48 596 572 139 166 Hop . | . . . . . Pick Up 20 | 4 9 5 . 2 Fast Attach 9 | 6 2 1 . . Attach 5 | . 2 1 . 2 Detach . | . . . . . Swap 4 | . 1 . . 3 Drop 2 | . 2 . . . Fire 72 | . 53 10 . 9 Melee . | . . . . . Ram . | . . . . . Kick . | . . . . . Crush . | . . . . . Escape Stasis . | . . . . . Rewire . | . . . . . Trap . | . . . . . Miscellaneous . | . . . . . Route ------- -11/Scrapyard -10/Materials (discovered 5 exits: *Mat x3 / [*Min x2]) -10/Mines (discovered 3 exits: *Mat x2 / *Exi) -10/Exiles (discovered 2 exits: [*Min x2]) -9/Mines History --------- Turn | Location | Event 20 | -11/Scrapyard | Discovered new exit (range 15) 66 | -11/Scrapyard | Entered Materials 172 | -10/Materials | Discovered new exit (range 15) 309 | -10/Materials | Build established: Mutant 480 | -10/Materials | Discovered new exit (range 15) 578 | -10/Materials | Discovered new exit (range 14) 701 | -10/Materials | Discovered new exit (range 15) 724 | -10/Materials | Discovered new exit (range 15) 820 | -10/Materials | Entered Mines 830 | -10/Mines | Assisted by bots powering up and referring to "LRC-V3" 1055 | -10/Mines | Identified exit to Materials 1257 | -10/Mines | Core integrity fell below 50% 1360 | -10/Mines | Learned location of Storage (-7) 1491 | -10/Mines | Discovered exit to Materials (range 15) 1560 | -10/Mines | Joined a pair of Derelicts in attacking an 0b10 outpost 1636 | -10/Mines | Deemed a non-threat by the Exiles lab entrance 1637 | -10/Mines | Discovered new exit (range 5) 1643 | -10/Mines | Entered Exiles 1643 | -10/Exiles | Accompanied by 3 allies 1661 | -10/Exiles | Discovered new exit (range 15) 1680 | -10/Exiles | Met 8R-AWN 1699 | -10/Exiles | Met EX-HEX 1757 | -10/Exiles | Met EX-DEC 1778 | -10/Exiles | Learned location of Zion (-6) 1820 | -10/Exiles | Discovered new exit (range 10) 1831 | -10/Exiles | Entered Mines 1831 | -9/Mines | Accompanied by 3 allies 1960 | -9/Mines | Learned location of 2 exits from Materials 2039 | -9/Mines | Assembled infested the area 2090 | -9/Mines | Core integrity fell below 20% 2095 | -9/Mines | Destroyed by G-47 Trooper with Particle Gun Last Messages --------------- 02058_ Wheel destroyed. 02058_ Destroyed Wheel. 02060_ Destroyed Lgt. Ion Engine. 02060_ R-06 Scavenger destroyed. 02064_ S-10 Pest destroyed. 02066_ System corrupted: Matter fused (-10). 02067_ U-05 Engineer builds a Wall. 02070_ U-05 Engineer lays Concrete. 02076_ Trooper 1a destroyed. 02076_ T-07 Excavator destroyed. 02077_ The unstable cave ceiling collapses. 02090_ Com. Wheel destroyed. 02090_ R-06 Scavenger collects Lgt. Ion Engine. 02091_ Hvy. EM Pulse Gun destroyed. 02091_ D-53 Grenadier destroyed. 02091_ Lgt. Ion Engine destroyed. 02093_ U-05 Engineer lays Concrete. 02093_ EM Pulse Gun destroyed. 02093_ R-06 Scavenger collects Lgt. Ion Engine. 02094_ U-05 Engineer lays Concrete. Map ----- +----------------------------------------------------+ | ????? ????????????????????????????????????????? | | ????? ????????????????????????????????????????? | | ????? ????????????????????????????????????????? | | ????? ##??????????????????????????????????????? | | ?????? #??????????????????????????????????????? | | ?????? ????????????????? ????????????????????? | | ?????? ????????????????# ?????????????????? | | ?????? ???????????????? # #????????????????? | | ??????# ???????????????# % #????????????????? | | ??????# ???????????????# % ##???#???????????? | | ??????# #???????????????##% #?? #???????????? | | ??????# #???????????????#= ! ### #???????????? | | ??????# #??????????????## #?# ???????? | | ??????# ###########????# ## ???????? | | ??????# ! u ??????? | | ??????# ## ########????? gr= ??????? | | ????### ##%#????????????? ** ??????? | | ????# ##!#????????????? * # ??????? | | ????# ##### #??????????????=%[ ?????? | | ????# #???# #?????????????? # # ????????? | | ????# #???# #?????????##??# %% # ???????????? | | ??### #???# #????????## ## # =! #??????????????? | | ??# ##### #######?## #???????????????? | | ### ## #?# #???????????????? | | ## """ #?# ##???????????????? | | ####### """ #??# @ d ##????????????????? | | #?????# """ #?# #?????????????????? | | ##????# #?## ##?????????????????? | | ##???# """ """ #??# ##??????????????????? | | #???# """ """ #??### ##???????????????????? | | #???# """ """ #????## ##????????????????????? | | #???# #?????# #?????????????###?????? | | #????? """ """ #?????# #????????????## #?????? | | #????? """ """ #?????# #????????????# #?????? | | #???????"" "?? #?????# #???????????## ##????? | | #???????? ??? #????## ##########?## ##???? | | ####????? ??? #???## #?# ##??? | | #????? ???? #??## ### ##?? | | #### #?????##????##??# #### #?? | | ???# #??????????????## ##?###### #?? | | ???# #?????????????## ###????## #? | | ???# ##???????????## ##????# #? | | ???# ##?????????## #????## #? | | ???# ########### #?????## #? | | ???# ## ##??????# #? | | ???# #####???????## ##? | | ???## #?????????????####?? | | ????## ### #??????????????????? | | ?????# ##?## #??????????????????? | | ?????## ########???####### ##??????????????????? | +----------------------------------------------------+ Best States ------------- Heat Dissipation 25 Energy Generation 10 Energy Capacity 125 Matter Stores 300 Matter Capacity 300 Sight Range 16 Terrain Scan Density 10 Evasion (%) 44 Targeting Accuracy 5 Item Schematics ----------------- None Robot Schematics ------------------ None Fabricated ------------ Nothing Alien Tech Used ----------------- None Achievements -------------- None Challenges ------------ None Game ------ Seed WeldingAuthchipCalibrator Manual? 0 Play Time 00:10:06 Cumulative 171.7 hours Start 2022.02.26 @ 15:00:16 End 2022.02.26 @ 15:08:46 Sessions 1 Manual Loads 0 Difficulty Rogue Special Mode None Game No. 286 Rogue 269 Adventurer 4 Explorer 13 Win Type - Total 8 Types 6/0/0/2/0/0/0/0/0 Lore% 65 Gallery% 82 Achievement% 68 Wizard Run 0 Options --------- ASCII 0 Keyboard 1 Movement Numpad Keybinds 0 Fullscreen 1 Font 18/SmallcapsGlow Map View 76x50 Tactical HUD 1 Map Filters NONE Filters NONE Steam 1 RUN: 2b264774-cdcb-4345-9d0d-488ab618e0f7